Cogmind - Beta 11.1 *** ADVENTURER MODE // 2022.08.01 @ 23:14:44 Player: TMPS Result: Destroyed by G-50 Soldier with Heavy Laser Performance ------------- Evolutions (2) 1000 Regions Visited (5) 1000 Robots Destroyed (107) 535 Value Destroyed (2534) 2534 Prototype IDs (30) 600 Alien Tech Used (0) 0 Bonus (530) 530 TOTAL SCORE: 6199 Bonus ------- High Alert Combat Kills 230 Aligned with FarCom 300 Cogmind --------- Core Integrity 0/550 Matter 193/300 Energy 146/350 System Corruption 0% Temperature Critical (505) Movement Core (100) Ox1 Location -8/Materials Parts ------- > --- POWER (1) -------- (None) > --- PROPULSION (3) --- (None) > --- UTILITY (4) ------ High-capacity Battery > --- WEAPON (3) ------- (None) > --- INVENTORY (5) ---- Nuclear Core Terrain Scanner Heavy Armor Plating Datajack Peak State ------------ > --- POWER ------------ Light Nuclear Core > --- PROPULSION ------- Compact Wheel Compact Wheel Armored Wheel > --- UTILITY ---------- Cooling System Humpback Shield Generator > --- WEAPON ----------- Beamcaster AWS/Thermal > --- INVENTORY -------- Nuclear Core Nuclear Core Nuclear Core Nuclear Core Nuclear Core Nuclear Core Wheel Wheel Armored Wheel Armored Wheel Improved Heat Sink Improved Heat Sink Improved Heat Sink Large Battery High-capacity Battery Small Matter Pod Large Matter Pod Terrain Scanner Terrain Scan Processor ECM Suite Core Shielding Tractor Beam Beam Rifle Beam Rifle Particle Gun Beam Cannon Rocket Launcher Datajack Mining Laser Plasma Cutter Plasma Cutter Blade Trap Blade Trap Blade Trap [Rating: 40] Favorites ----------- Power Light Nuclear Core Engine Ion Engine Power Core Light Nuclear Core Propulsion Armored Wheel Treads Light Treads Leg Improved Aluminum Leg Wheel Armored Wheel Utility Humpback Device Improved Heat Sink Storage Humpback Protection Core Shielding Weapon Beam Cannon Energy Gun Beamcaster Energy Cannon Beam Cannon Ballistic Gun Assault Rifle Launcher Rocket Launcher Special Weapon Plasma Cutter Special Melee Weapon Datajack Build | -11 -10 -10 -10 -9 -8 ------- Run | Scr Mat Min Exi Min Mat Slots Evolved 4 | . . . . . 4 Power . | . . . . . . Propulsion 1 | . . . . . 1 Utility 2 | . . . . . 2 Weapon 1 | . . . . . 1 Parts Attached 77 | 9 16 1 6 18 27 Power 4 | 1 1 . . 1 1 Engine 1 | 1 . . . . . Core 3 | . 1 . . 1 1 Reactor . | . . . . . . Propulsion 24 | 2 4 . . 11 7 Treads 2 | . . . . . 2 Leg 4 | . 2 . . 2 . Wheel 18 | 2 2 . . 9 5 Hover . | . . . . . . Flight . | . . . . . . Utility 15 | 4 5 . 2 . 4 Device 8 | 3 2 . . . 3 Storage 6 | 1 2 . 2 . 1 Processor . | . . . . . . Hackware . | . . . . . . Protection 1 | . 1 . . . . Artifact . | . . . . . . Weapon 34 | 2 6 1 4 6 15 Energy Gun 12 | . 3 1 3 3 2 Energy Cannon 7 | . 1 . 1 2 3 Ballistic Gun 3 | 2 1 . . . . Ballistic Cannon . | . . . . . . Launcher 5 | . 1 . . . 4 Special Weapon 4 | . . . . 1 3 Impact Weapon . | . . . . . . Slashing Weapon . | . . . . . . Piercing Weapon . | . . . . . . Special Melee Weapon 3 | . . . . . 3 Unidentified Prototypes . | . . . . . . Parts Lost 30 | . . . . . 30 Power 3 | . . . . . 3 Propulsion 5 | . . . . . 5 Utility 13 | . . . . . 13 Weapon 8 | . . . . . 8 Highest Loss Streak 27 | . . . . . 27 To Critical Strikes 1 | . . . . . 1 Average Slot Usage (%) 88 | . 99 100 92 83 73 Core 12 | . 11 14 14 14 8 Wheel 26 | . 27 28 28 27 22 Device 8 | . 16 14 7 . 10 Storage 13 | . 10 14 17 14 14 Energy Gun 14 | . 19 14 14 14 11 Energy Cannon 8 | . 2 14 10 12 1 Naked Turns . | . . . . . . Heaviest Build 229 | 14 16 18 213 213 229 Greatest Support 48 | 20 26 24 24 32 48 Greatest Overweight (x) 18 | . 1 1 8 8 18 Average Overweight (x) 2 | . . . 1 6 6 Largest Inventory Capacity 35 | 8 5 5 35 35 35 Average Capacity 21 | 5 5 5 16 35 34 Most Carried 35 | 7 5 5 10 35 35 Average Carried 18 | 4 4 4 6 29 33 Final Capacity 35 | 5 5 5 35 35 5 Final Carried 35 | 5 5 5 9 35 5 Class Distribution -------------------- 46% | Mutant 42% | Hauler-Mutant 11% | Hauler-Skirmisher Dominant Class ---------------- Mutant | -10/Materials Mutant | -10/Mines Mutant | -10/Exiles Hauler-Mutant | -9/Mines Hauler-Skirmisher | -8/Materials Resources | -11 -10 -10 -10 -9 -8 ----------- Run | Scr Mat Min Exi Min Mat Matter Collected 1602 | 349 265 10 98 507 373 Remotely . | . . . . . . Salvage Created 3325 | 209 563 203 . 946 1404 Parts 217 | 17 46 19 . 52 83 Haulers Intercepted 2 | . 2 . . . . Recyclers Shooed 2 | . . . . 2 . Parts Field Recycled . | . . . . . . Retrieved Matter . | . . . . . . Parts Self-Destructed . | . . . . . . Prevented . | . . . . . . Kills | -11 -10 -10 -10 -9 -8 ------- Run | Scr Mat Min Exi Min Mat Combat Hostiles Destroyed 61 | . 10 4 . 17 30 Guns 40 | . 9 2 . 10 19 Cannons 11 | . 1 1 . 7 2 AOE 9 | . . . . . 9 Classes Destroyed 12 | 3 5 . . 1 3 Worker 10 | 2 . 4 . 2 2 Builder 16 | . 4 3 . 2 7 Tunneler 6 | 5 . . . 1 . Hauler 2 | . 2 . . . . Recycler 5 | 1 . . . 4 . Operator 1 | . . . . . 1 Watcher 6 | . 3 . . . 3 Swarmer 17 | . 3 3 . 9 2 Grunt 35 | . 7 1 . 7 20 Duelist 3 | . . . . 1 2 Sentry 5 | . . . . . 5 Hunter 1 | . . . . . 1 Best Kill Streak 13 | 4 6 3 . 4 13 Combat Bots Only 8 | . 3 3 . 3 8 Max Kills in Single Turn 3 | 1 2 2 . 2 3 Gunslinging . | . . . . . . Exploded 2 | . . . . . 2 Melee . | . . . . . . Uniques/NPCs Destroyed . | . . . . . . Combat | -11 -10 -10 -10 -9 -8 -------- Run | Scr Mat Min Exi Min Mat Damage Taken 2105 | . 319 122 . 150 1514 Core 672 | . 67 13 . 29 563 Absorbed by Shields 4 | . . . . . 4 Core Remaining (%) 78 | 100 . . . 56 . Volleys Fired 160 | 14 47 19 . 46 34 Largest 3 | 2 2 2 . 2 3 Hottest 195 | 40 125 135 . 135 195 Shots Fired 365 | 28 93 38 . 75 131 Gun 272 | 28 89 19 . 49 87 Cannon 70 | . 2 19 . 25 24 Launcher 19 | . 2 . . . 17 Special 4 | . . . . 1 3 Kinetic 56 | 28 28 . . . . Thermal 290 | . 63 38 . 75 114 Explosive 19 | . 2 . . . 17 Electromagnetic . | . . . . . . Robot Hit Streak 44 | 22 11 7 . 14 44 Robot Miss Streak 5 | . 5 4 . 2 1 Penetration Max . | . . . . . . Secondary Targets . | . . . . . . Autonomous 88 | . . . . 4 84 Shots Hit Robots 280 | 22 56 21 . 56 125 Core Hits 135 | 10 28 11 . 28 58 Critical Kills . | . . . . . . Critical Parts Destroyed . | . . . . . . Critical Strikes 4 | . 1 . . 2 1 Burn 4 | . 1 . . 2 1 Melee Attacks 4 | . . . . . 4 Impact . | . . . . . . Slashing . | . . . . . . Piercing . | . . . . . . Sneak Attacks 4 | . . . . . 4 Combat Hostiles . | . . . . . . Follow-up Attacks . | . . . . . . Damage Inflicted 7127 | 248 770 412 . 1169 4528 Guns 4522 | 248 719 217 . 893 2445 Cannons 1049 | . 18 195 . 264 572 Explosions 1496 | . 30 . . . 1466 Melee . | . . . . . . Ramming 3 | . 3 . . . . Kinetic 463 | 248 215 . . . . Thermal 5165 | . 522 412 . 1169 3062 Explosive 1496 | . 30 . . . 1466 Electromagnetic . | . . . . . . Impact . | . . . . . . Slashing . | . . . . . . Piercing . | . . . . . . Highest Corruption 1 | . 1 1 1 1 . Average Corruption 1 | . 1 1 1 1 . Corruption Purged . | . . . . . . Corruption Blocked . | . . . . . . Effects 21 | . . 5 3 13 . Message Errors 4 | . . 2 . 2 . Matter Fused 6 | . . . 2 4 . Heat Flow Errors 2 | . . 1 . 1 . Energy Discharges 2 | . . 1 . 1 . Data Loss (minor) 5 | . . 1 1 3 . Data Loss (major) 1 | . . . . 1 . Alerts 1 | . . . . 1 . Overload Shots . | . . . . . . Overflow Damage 19 | . . . . 4 15 Projectiles 5 | . . . . 4 1 Explosions 14 | . . . . . 14 Melee . | . . . . . . Knockbacks . | . . . . . . Impact . | . . . . . . Kinetic . | . . . . . . Secondary . | . . . . . . Self-Inflicted Damage 6 | . 1 . . . 5 Shots 1 | . . . . . 1 Rammed 1 | . 1 . . . . Targets Rammed 1 | . 1 . . . . Kicked . | . . . . . . Crushed . | . . . . . . Highest Temperature 659 | . 182 162 . 508 659 Average Temperature 146 | . 57 49 . 162 405 Received Heat Transfer 867 | . 153 27 . 39 648 Effects 22 | . . . . 4 18 Shutdowns 2 | . . . . 1 1 Energy Bleed 3 | . . . . . 3 Interference 3 | . . . . 1 2 Matter Decay 4 | . . . . 2 2 Damage (major) 7 | . . . . . 7 Damage (core) 3 | . . . . . 3 Siege Activations . | . . . . . . Robots Corrupted . | . . . . . . Combat Hostiles . | . . . . . . Parts Fried . | . . . . . . Impact Corruptions . | . . . . . . Robots Melted 1 | . . 1 . . . Combat Hostiles 1 | . . 1 . . . Parts Melted 9 | . 2 2 . 2 3 Heat Transferred 8734 | . 1506 888 . 2257 4083 Parts Sabotaged . | . . . . . . Parts Stolen . | . . . . . . Parts Stripped . | . . . . . . Power Chain Reactions . | . . . . . . Missiles Intercepted . | . . . . . . Alert | -11 -10 -10 -10 -9 -8 ------- Run | Scr Mat Min Exi Min Mat Peak Influence 1014 | 40 339 127 . 158 1014 Initial 42 | . 22 42 . . . Average 138 | 17 188 69 . 58 351 Maximum Alert Level 3 | . 1 . . . 3 Low Security (%) 81 | 100 55 100 . 100 46 Level 1 12 | . 44 . . . 16 Level 2 4 | . . . . . 22 Level 3 2 | . . . . . 14 Level 4 . | . . . . . . Level 5 . | . . . . . . High Security . | . . . . . . Max Security . | . . . . . . Squads Dispatched 11 | . 2 . . . 9 Investigation 3 | . 2 . . . 1 Extermination . | . . . . . . Reinforcement 3 | . . . . . 3 Assault 1 | . . . . . 1 Garrison 4 | . . . . . 4 Intercept . | . . . . . . Searches Triggered . | . . . . . . Construction Impeded 3 | . . . . . 3 Haulers Reinforced . | . . . . . . Active Scanning Responses . | . . . . . . Cargo Convoy Interrupts . | . . . . . . Stealth | -11 -10 -10 -10 -9 -8 --------- Run | Scr Mat Min Exi Min Mat Distress Signals 5 | . 1 . . . 4 Communications Jammed . | . . . . . . Distress Signals . | . . . . . . Times Spotted 76 | . 17 4 . 16 39 Peak Tracking Total 6 | . 3 3 . 3 6 Tactical Retreats 3 | . 1 . . . 2 Traps | -11 -10 -10 -10 -9 -8 ------- Run | Scr Mat Min Exi Min Mat Traps Triggered 5 | . 4 . . . 1 Indirectly . | . . . . . . Trap Hack Attempts . | . . . . . . Triggered . | . . . . . . Disarmed . | . . . . . . Reprogrammed . | . . . . . . Reused . | . . . . . . Traps Extracted . | . . . . . . Installed . | . . . . . . Triggered . | . . . . . . Most Traps Carried 3 | . . . . 3 3 Machines | -11 -10 -10 -10 -9 -8 ---------- Run | Scr Mat Min Exi Min Mat Machines Disabled 3 | . . . . . 3 Max in Single Turn 1 | . . . . . 1 Garrison Access 1 | . . . . . 1 Machines Sabotaged . | . . . . . . Garrisons Compromised . | . . . . . . Overloaded Fab Kills . | . . . . . . Hacking | -11 -10 -10 -10 -9 -8 --------- Run | Scr Mat Min Exi Min Mat Machines Accessed 15 | . 6 1 2 1 5 Terminals 10 | . 4 1 . 1 4 Fabricators . | . . . . . . Repair Stations . | . . . . . . Recycling Units 2 | . 2 . . . . Scanalyzers . | . . . . . . Garrison Access 1 | . . . . . 1 Total Hacks 39 | . 21 1 2 2 13 Successful 25 | . 13 1 2 . 9 Failed 14 | . 8 . . 2 4 Catastrophic 1 | . . . . 1 . Database Lockouts . | . . . . . . Manual 1 | . . . 1 . . Terminals 27 | . 13 1 . 2 11 Fabricators . | . . . . . . Repair Stations . | . . . . . . Recycling Units 8 | . 8 . . . . Scanalyzers . | . . . . . . Garrison Access 2 | . . . . . 2 Terminal Hacks 18 | . 8 1 2 . 7 Record 2 | . . . 1 . 1 Robot Analysis 2 | . 1 . . . 1 Prototype ID Bank 3 | . 2 . . . 1 Branch Access Points 2 | . 1 . . . 1 Locate Traps 1 | . 1 . . . . Dispatch Records 1 | . . 1 . . . Security Status 1 | . . . . . 1 Patrol Status 1 | . 1 . . . . Transport Status 1 | . 1 . . . . Investigation Status 1 | . 1 . . . . Hauler Manifests 1 | . . . . . 1 Registered Components 1 | . . . . . 1 EX-Prototype ID Bank 1 | . . . 1 . . Fabricator Hacks . | . . . . . . Repair Station Hacks . | . . . . . . Recycling Unit Hacks 5 | . 5 . . . . Process 1 | . 1 . . . . Report Inventory 3 | . 3 . . . . Retrieve Matter 1 | . 1 . . . . Scanalyzer . | . . . . . . Garrison Access Hacks 2 | . . . . . 2 Unlock Access 1 | . . . . . 1 Coupler Status 1 | . . . . . 1 Unauthorized Hacks . | . . . . . . Terminals . | . . . . . . Fabricators . | . . . . . . Repair Stations . | . . . . . . Recycling Units . | . . . . . . Scanalyzers . | . . . . . . Garrison Access . | . . . . . . Data Cores Recovered 1 | . . . . . 1 Used . | . . . . . . Hacking Detections 8 | . 5 1 . 1 1 Full Trace Events 3 | . 2 . . . 1 Feedback Events . | . . . . . . Feedback Blocked . | . . . . . . Robot Schematics Acquired . | . . . . . . Robots Built . | . . . . . . Authchips . | . . . . . . Time . | . . . . . . Total Robot Build Rating . | . . . . . . Part Schematics Acquired . | . . . . . . Parts Built . | . . . . . . Authchips . | . . . . . . Time . | . . . . . . Total Part Build Rating . | . . . . . . Parts Repaired . | . . . . . . Time . | . . . . . . Parts Recycled . | . . . . . . Recycled Matter 125 | . 125 . . . . Retrieved Matter 218 | . 218 . . . . Retrieved Components . | . . . . . . Parts Scanalyzed . | . . . . . . Part Schematics Acquired . | . . . . . . Parts Damaged . | . . . . . . Bothacking | -11 -10 -10 -10 -9 -8 ------------ Run | Scr Mat Min Exi Min Mat Used RIF Installer . | . . . . . . Robots Hacked 1 | . . . . . 1 Non-combat 1 | . . . . . 1 Combat . | . . . . . . Robot Hacks Applied 2 | . . . . . 2 parse_system 1 | . . . . . 1 no_distress 1 | . . . . . 1 Relay Couplers Released 2 | . . . . . 2 Machine Destruction 2 | . . . . . 2 Fabnet Peak Effective % . | . . . . . . Robots Rewired . | . . . . . . Allies Hacked . | . . . . . . Hacks Repelled . | . . . . . . Allies | -11 -10 -10 -10 -9 -8 -------- Run | Scr Mat Min Exi Min Mat Total Allies 3 | . . 3 . . . Largest Group 3 | . . 3 1 . . Highest-Rated Group 76 | . . 76 31 . . Highest-Rated Ally 31 | . . 31 31 . . Total Orders . | . . . . . . Ally Attacks . | . . . . . . Total Damage . | . . . . . . Kills . | . . . . . . Allies Corrupted . | . . . . . . Allies Melted . | . . . . . . Intel | -11 -10 -10 -10 -9 -8 ------- Run | Scr Mat Min Exi Min Mat Robot Analysis Total 2 | . 1 . . . 1 Derelict Logs Recovered 3 | . . 2 . 1 . Drone Launches . | . . . . . . Drone Recoveries . | . . . . . . Exploration | -11 -10 -10 -10 -9 -8 ------------- Run | Scr Mat Min Exi Min Mat Turns Passed 5047 | 186 928 797 603 1731 802 Spaces Moved 3465 | 158 888 797 512 772 338 Core 17 | 12 . . . . 5 Treads 1 | . . . . . 1 Legs 11 | . 11 . . . . Wheels 3436 | 146 877 797 512 772 332 Hover . | . . . . . . Flight . | . . . . . . Fastest Speed 50 | 50 80 90 90 190 100 Average Speed 125 | 77 83 91 113 198 188 Slowest Speed 1040 | 80 190 105 210 210 1040 Overloaded Moves . | . . . . . . Propulsion Burnouts . | . . . . . . Robots Hopped . | . . . . . . Cave-ins Triggered . | . . . . . . Exploration Rate (%) 66 | 7 98 97 72 95 28 Regions Visited 5 Branch Regions 3 Pre-discovered Areas 1 | . . 1 . . . Known Exits Taken 1 | . 1 . . . . Unknown Exits Taken 4 | 1 . 1 1 1 . Scrap Searched 5 | . . 1 . 4 . Spaces Dug . | . . . . . . Terrain Destroyed 142 | . 17 . . 1 124 Melee . | . . . . . . Projectile 2 | . . . . 1 1 AOE 140 | . 17 . . . 123 Terrain Rammed . | . . . . . . Walls Destroyed . | . . . . . . Machines Disabled . | . . . . . . Actions | -11 -10 -10 -10 -9 -8 --------- Run | Scr Mat Min Exi Min Mat Total 3908 | 195 983 830 536 904 460 Wait 38 | . 4 11 . 7 16 Move 3460 | 157 887 796 511 771 338 Hop . | . . . . . . Pick Up 90 | 13 7 1 9 41 19 Fast Attach 25 | 3 13 1 4 . 4 Attach 30 | 6 1 . 2 8 13 Detach 11 | . 1 . 2 4 4 Swap 22 | . 2 . . 10 10 Drop 67 | 2 20 2 8 17 18 Fire 160 | 14 47 19 . 46 34 Melee 4 | . . . . . 4 Ram 1 | . 1 . . . . Kick . | . . . . . . Crush . | . . . . . . Escape Stasis . | . . . . . . Rewire . | . . . . . . Trap . | . . . . . . Miscellaneous . | . . . . . . Route ------- -11/Scrapyard -10/Materials (discovered 4 exits: [*Mat x3] / *Min) -10/Mines (discovered 3 exits: [*Mat x2] / *Exi) -10/Exiles (discovered 2 exits: *Min x2) -9/Mines (discovered 2 exits: *Mat x2) -8/Materials (discovered 1 exit: Fac) History --------- Turn | Location | Event 7 | -11/Scrapyard | Discovered new exit (range 16) 187 | -11/Scrapyard | Entered Materials 266 | -10/Materials | Discovered new exit (range 11) 332 | -10/Materials | Build established: Mutant 394 | -10/Materials | Identified exit to Mines 648 | -10/Materials | Discovered new exit (range 16) 913 | -10/Materials | Discovered new exit (range 6) 1115 | -10/Materials | Entered Mines 1119 | -10/Mines | Met a Derelict bent on vengeance 1167 | -10/Mines | Received a Mining Laser from a helpful Derelict 1248 | -10/Mines | Learned 4 Materials zone layouts 1464 | -10/Mines | Discovered new exit (range 9) 1481 | -10/Mines | Discovered new exit (range 5) 1543 | -10/Mines | Deemed a non-threat by the Exiles lab entrance 1543 | -10/Mines | Discovered new exit (range 5) 1912 | -10/Mines | Entered Exiles 1912 | -10/Exiles | Accompanied by 1 ally 1926 | -10/Exiles | Discovered new exit (range 15) 1942 | -10/Exiles | Led the pair of lost Derelicts to a safe place 1955 | -10/Exiles | Met 8R-AWN 1974 | -10/Exiles | Met EX-HEX 2027 | -10/Exiles | Met EX-DEC 2079 | -10/Exiles | Met EX-BIN 2090 | -10/Exiles | Aligned with FarCom system 2091 | -10/Exiles | Given EX-Vault access code 2111 | -10/Exiles | Opened EX-Vault 2123 | -10/Exiles | Found AWS/Thermal 2153 | -10/Exiles | Warned to stay clear of 0b10 Research branches 2269 | -10/Exiles | Discovered new exit (range 11) 2515 | -10/Exiles | Left Exiles lab with AWS/Thermal 2515 | -10/Exiles | Entered Mines 2578 | -9/Mines | Discovered new exit (range 16) 2638 | -9/Mines | Learned Materials terminal intel 2651 | -9/Mines | Build established: Hauler-Mutant 2849 | -9/Mines | Found a hidden stash of uninstalled traps 3222 | -9/Mines | Discovered new exit (range 14) 3331 | -9/Mines | Received a Rocket Launcher from a helpful Derelict 4246 | -9/Mines | Entered Materials 4246 | -8/Materials | Evolved 4 slots: Propulsion x1, Utility x2, Weapon x1 4247 | -8/Materials | Identified exit to Factory 4248 | -8/Materials | Loaded intel: 12 terminal locations 4615 | -8/Materials | Garrison activated, responded to threat 4810 | -8/Materials | Identified exit to Garrison 4931 | -8/Materials | Garrison activated, responded to threat 4984 | -8/Materials | Destroyed 8 combat bots 5037 | -8/Materials | Core integrity fell below 50% 5039 | -8/Materials | Core integrity fell below 20% 5048 | -8/Materials | Destroyed by G-50 Soldier with Heavy Laser Last Messages --------------- Cooling System crushed and broken. Beamcaster crushed and broken. Nuclear Core crushed and broken. ECM Suite crushed and broken. Core Shielding crushed and broken. Hpw. Tractor Beam crushed and broken. Imp. Heat Sink crushed and broken. Blade Trap crushed and broken. Arm. Wheel crushed and broken. Imp. Heat Sink crushed and broken. Relay Coupler [Duelist] crushed and broken. Terrain Scan Processor crushed and broken. Plasma Cutter destroyed. Overheating: Energy bleed (-14). Com. Wheel destroyed. Overheating: System interference. Mining Laser temporarily disabled. Mining Laser destroyed. Acquired 44 matter. Overheating: Matter decay (-34). Map ----- +----------------------------------------------------+ | #????###########?????????????# #######????????? | | #????# #?????######### ## #????????? | | #????# #?????# [ # # "" #????????? | | #????# #????## !! ]# # "" #????????? | | #????# = #??####] !! # # "T #????????? | | #????# """ """ #??# #* ! + + "" #????????? | | #????# """ """ #??### ! # # "" #????????? | | #????# """ """ #???### ! # # #????????? | | #??### #?## ##[######^ ^######????????? | | ## # #####+##########T######= #????????????? | | |%! ##???????????? | | [*[*%/ % *= % ##???????????? | | =%%* ! = [ * ##?????#?????? | | ######/# ##################+### = #???? #?????? | | ???# ?????????????### =## [ # #???# #??## | | ???# """??????????????# [ # # #???# #??# | | ???# """ ?????????????# ]!! ##= # #???# #??# | | ???#? """ ?????????????# !!! #= # #???# #??# | | ???? #????????????# !!! ##%= # ##??# #??# | | ???? % ?#????????????# ##= ## #??# #??# | | ????####????????????############%!*####### #??#### | | ????????????????????# =# = #?????? | | ????????????????????# T """ #*[= g %* #?????? | | ????????????????????# """ + %""" %!#?????? | | T???????????????????#& """%# "G"g ! #?????? | | ????????????????????#=! !@ # " #?????? | | ????????????????????#=![] * # ! #?????? | | ????????????????????#[lgg # *[% * #?????? | | ????????????????????#/ =m] # %=!! #?????? | | ?????????????????? ##*######### "" #?????? | | ?????????????????? ### # # "" #?????? | | ????????????????? %! #?????? | | ????????????????? % = #?????? | | ????????????????? !%[ #?????? | | ????????????????? #######+ ! #########+####?????? | | ???????????????????## #?????# #?????? | | ????????????????????##!=! """ #?????# #?????? | | ?????????????????????#!=! """ #?????# ""#?????? | | ????????????????????# !!! """ ####### T"#?????? | | #????????????????????#?????? ??????# ""#?????? | | #???????????????????????????" ??????# #?????? | | #???????????????????????????? ??????########?????? | | #????????????????????????????????????????????????? | | #????????????????????????????????????????????????? | | #????????????????????????????????????????????????? | | ?????????????????????????????????????????????????? | | #????????????????????????????????????????????????? | | ????????????????????????????????????????????????? | | ????????????????????????????????????????????????? | | ????????????????????????????????????????????????? | +----------------------------------------------------+ Best States ------------- Heat Dissipation 53 Energy Generation 14 Energy Capacity 490 Matter Stores 300 Matter Capacity 300 Sight Range 16 Robot Scan Range 14 Terrain Scan Range 16 Terrain Scan Density 10 Resistance: KI 20 Resistance: TH 20 Resistance: EX 20 Resistance: EM 20 Resistance: I 20 Resistance: S 20 Resistance: P 20 Core Shielding 20 Evasion (%) 50 Recoil Reduction 1 Offensive Hacking 10 Item Schematics ----------------- None Robot Schematics ------------------ None Fabricated ------------ Nothing Alien Tech Used ----------------- None Achievements -------------- Packrat Tank Troublemaker Challenges ------------ None Game ------ Seed CorruptionBurstStripper Manual? 0 Play Time 01:33:32 Cumulative 21.8 hours Start 2022.08.01 @ 20:39:41 End 2022.08.01 @ 23:14:44 Sessions 1 Manual Loads 0 Difficulty Adventurer Special Mode None Game No. 32 Rogue 29 Adventurer 3 Explorer 0 Win Type - Total 0 Types 0/0/0/0/0/0/0/0/0 Lore% 19 Gallery% 22 Achievement% 9 Wizard Run 0 Options --------- ASCII 0 Keyboard 0 Movement Mouse Keybinds 0 Fullscreen 1 Font 20/SmallcapsGlow Map View 66x50 Tactical HUD 0 Map Filters NONE Filters NONE Steam 1 RUN: 8ce792e4-8776-402a-94b2-06e57284935b